bitfinex-derivatives/quotes_ETHF0:USTF0_20230830
["timestamp","ask_amount","ask_price","bid_price","bid_amount"]
[1693403220544,1.98080953,1715.2,1715.0,3.5414]
[1693403220745,1.98080953,1715.2,1715.0,4.97498176]
[1693403221138,1.98080953,1715.2,1715.0,7.24491824]
[1693403221947,8.165,1715.3,1715.0,7.24491824]
[1693403221948,8.165,1715.3,1715.1,3.2078]
[1693403222146,8.17374584,1715.3,1715.2,1.43358176]
[1693403222443,8.17374584,1715.3,1715.2,3.70351824]
[1693403222751,0.00874584,1715.3,1715.2,3.70351824]
[1693403223742,0.00874584,1715.3,1715.1,3.2078]
[1693403223943,8.17374584,1715.3,1715.0,3.5414]
[1693403224448,8.165,1715.1,1714.9,3.2078]
[1693403224650,8.165,1715.1,1714.7,6.7545]
[1693403224838,8.165,1715.1,1714.7,9.02443648]
[1693403225347,8.165,1715.1,1714.9,3.2078]
[1693403225548,10.14580953,1715.1,1714.9,3.2078]
[1693403226149,10.14580953,1715.1,1715.0,1.43358176]
[1693403226347,8.165,1715.2,1715.0,3.70351824]
[1693403226548,8.165,1715.2,1715.1,3.2078]
[1693403226851,8.165,1715.2,1715.0,3.70351824]
[1693403227445,9.59858176,1715.1,1714.7,3.2078]
[1693403227746,10.43493648,1715.0,1714.7,6.8453]
[1693403227950,1.43358176,1714.9,1714.7,6.8453]
[1693403228149,1.43358176,1714.9,1714.8,1.43358176]
[1693403228957,2.26993648,1715.0,1714.8,1.43358176]
[1693403229247,3.70351824,1715.0,1714.8,1.43358176]
[1693403229845,3.70351824,1715.0,1714.7,7.13442695]
[1693403230449,3.70351824,1715.0,1714.8,1.43358176]
[1693403230748,3.80402246,1715.3,1714.9,11.66192695]
[1693403230749,0.00874584,1715.3,1714.9,11.66192695]
[1693403230946,0.00874584,1715.3,1715.0,11.3728]
[1693403231149,0.00874584,1715.3,1715.1,1.72270871]
[1693403231344,0.00874584,1715.3,1715.1,5.21650871]
[1693403231849,0.48006692,1715.3,1715.1,5.21650871]
[1693403232047,1.4423276,1715.3,1715.1,5.21650871]
[1693403233049,3.71226408,1715.3,1715.1,3.78292695]
[1693403233244,8.165,1715.2,1715.1,3.4938]
[1693403235860,3.70351824,1715.1,1714.7,6.8429]
[1693403236150,8.165,1714.8,1714.7,6.8429]
[1693403236355,9.59858176,1714.8,1714.7,6.8429]
[1693403236657,9.59858176,1714.8,1714.5,3.2078]
[1693403236848,2.26993648,1714.7,1714.5,3.2078]
[1693403237052,1.43358176,1714.6,1714.5,3.2078]
[1693403237356,1.43358176,1714.6,1714.5,4.64138176]
[1693403237960,9.59858176,1714.6,1714.5,3.2078]
[1693403239460,9.59858176,1714.6,1714.3,6.6784]
[1693403239651,8.165,1714.4,1714.3,6.6784]
[1693403239857,8.165,1714.4,1714.3,8.11198176]
[1693403240257,9.59858176,1714.4,1714.3,8.11198176]
[1693403240959,9.59858176,1714.4,1714.3,6.6784]
[1693403242054,3.2078,1715.0,1714.3,8.11198176]
[1693403242251,8.165,1714.7,1714.3,13.06918176]
[1693403242450,8.165,1714.9,1714.6,3.2078]
[1693403242650,8.165,1714.9,1714.7,1.72270871]
[1693403242857,9.59858176,1714.9,1714.7,0.28912695]
[1693403243959,9.59858176,1714.9,1714.6,3.2078]
[1693403244161,11.86851824,1714.9,1714.6,3.2078]
[1693403244355,11.86851824,1714.9,1714.6,3.49692695]
[1693403245356,8.165,1714.8,1714.6,3.49692695]
[1693403245556,3.70351824,1714.7,1714.4,3.2078]
[1693403246857,8.165,1714.6,1714.3,3.4706]
[1693403247063,3.70351824,1714.5,1714.3,3.4706]
[1693403247758,3.70351824,1714.5,1714.4,4.64138176]
[1693403248065,2.26993648,1714.5,1714.4,4.64138176]
[1693403248258,8.165,1714.6,1714.4,4.64138176]
[1693403248452,8.165,1714.6,1714.4,4.93050871]
[1693403248654,11.86851824,1714.6,1714.4,4.93050871]
[1693403249061,11.86851824,1714.6,1714.4,4.64138176]
[1693403249861,8.165,1714.7,1714.4,4.64138176]
[1693403250064,10.43493648,1714.7,1714.4,4.64138176]
[1693403250465,1.43358176,1714.6,1714.4,4.93050871]
[1693403251261,8.165,1714.7,1714.4,4.93050871]
[1693403251461,8.165,1714.7,1714.6,3.2078]
[1693403251665,9.59858176,1714.7,1714.6,3.2078]
[1693403251860,1.43358176,1714.7,1714.6,3.2078]
[1693403252064,1.43358176,1714.7,1714.6,4.64138176]
[1693403252965,10.43493648,1714.8,1714.6,4.93050871]
[1693403254563,11.86851824,1714.8,1714.6,4.93050871]
[1693403254764,11.86851824,1714.8,1714.6,3.2078]
[1693403254967,8.165,1714.7,1714.6,3.2078]
[1693403255164,8.165,1714.8,1714.6,3.2078]
[1693403255664,8.165,1714.8,1714.7,1.43358176]
[1693403256067,9.59858176,1714.8,1714.6,3.49692695]
[1693403256771,9.59858176,1714.8,1714.7,1.43358176]
[1693403257567,8.165,1714.8,1714.7,1.43358176]
[1693403258066,9.59858176,1714.8,1714.6,3.2078]
[1693403258268,2.26993648,1714.7,1714.6,3.2078]
[1693403259069,2.26993648,1714.7,1714.6,4.64138176]
[1693403259267,9.59858176,1714.8,1714.6,4.64138176]
[1693403259768,8.165,1715.0,1714.7,0.28912695]
[1693403260068,1.43358176,1714.9,1714.8,1.43358176]
[1693403260372,1.43358176,1714.9,1714.7,3.78362695]
[1693403261876,9.59858176,1714.9,1714.7,3.78362695]
[1693403262177,9.59858176,1714.9,1714.7,5.21720871]
[1693403263173,8.165,1714.9,1714.8,3.2078]
[1693403263673,9.59858176,1714.9,1714.7,5.21720871]
[1693403267477,10.44320022,1715.0,1714.8,3.2078]
[1693403267874,10.44320022,1715.0,1714.9,1.43358176]
[1693403268070,11.87678198,1715.0,1714.8,3.49692695]
[1693403268275,11.87678198,1715.0,1714.7,3.4945]
[1693403268776,2.27820022,1714.9,1714.8,1.43358176]
[1693403269276,2.27820022,1714.9,1714.7,3.78362695]
[1693403269482,8.165,1714.8,1714.7,3.78362695]
[1693403269675,8.165,1714.8,1714.7,3.4945]
[1693403269875,8.165,1714.8,1714.7,4.92808176]
[1693403270081,9.59858176,1714.8,1714.7,3.4945]
[1693403270776,11.87678198,1714.8,1714.7,3.4945]
[1693403272987,12.16844867,1714.8,1714.6,3.2078]
[1693403273185,11.87678198,1714.8,1714.6,3.2078]
[1693403274687,2.27820022,1714.7,1714.6,3.2078]
[1693403276089,4.5481367,1714.7,1714.6,3.2078]
[1693403276694,4.83980937,1714.7,1714.6,3.2078]
[1693403277391,10.08980937,1714.7,1714.6,3.2078]
[1693403278386,5.5909629,1714.7,1714.4,4.88305877]
[1693403278589,7.52948067,1714.5,1714.4,3.3623]
[1693403278790,7.52948067,1714.5,1714.2,4.72855877]
[1693403278791,10.8409629,1714.5,1714.2,4.72855877]
[1693403278988,5.25,1714.3,1714.2,4.72855877]
[1693403279388,7.52951215,1714.3,1714.2,3.2078]
[1693403279594,9.79944863,1714.3,1714.2,3.2078]
[1693403280395,10.09119055,1714.3,1714.1,1.52075877]
[1693403280590,9.25485013,1714.2,1714.0,4.72855877]
[1693403280887,7.51993648,1714.1,1714.0,1.52075877]
[1693403281089,10.09121896,1714.1,1713.9,1.52075877]
[1693403281285,6.68358176,1714.0,1713.9,4.21325626]
[1693403281495,9.79944863,1714.1,1713.9,6.4072174]
[1693403281695,9.79944863,1714.1,1714.0,4.73680404]
[1693403281883,9.79944863,1714.1,1713.9,3.71471991]
[1693403281884,8.95351824,1714.1,1713.9,5.24372395]
[1693403282090,8.95351824,1714.1,1714.0,1.52900404]
[1693403282391,3.70351824,1714.1,1713.9,2.9625858]
[1693403282592,11.87451824,1714.1,1713.9,6.50105969]
[1693403282793,11.87451824,1714.1,1714.0,1.52900404]
[1693403283094,11.87451824,1714.1,1714.0,3.2078]
[1693403283596,11.87451824,1714.1,1713.9,4.94630404]
[1693403284497,8.171,1714.1,1714.0,3.2078]
[1693403284692,2.27951215,1714.3,1714.0,15.597282]
[1693403284895,2.27951215,1714.4,1714.2,3.2078]
[1693403285197,2.27951215,1714.4,1714.3,0.28912695]
[1693403285393,3.71309391,1714.4,1714.3,0.28912695]
[1693403285692,2.27951215,1714.5,1714.3,1.72270871]
[1693403285894,9.86711215,1714.6,1714.4,3.2078]
[1693403286089,1.43358176,1714.5,1714.4,3.2078]
[1693403286292,8.171,1714.6,1714.4,3.2078]
[1693403286496,9.60458176,1714.6,1714.4,3.2078]
[1693403286887,8.171,1714.6,1714.4,3.2078]
[1693403287092,3.02935375,1714.8,1714.5,17.32562454]
[1693403287288,3.78669218,1714.9,1714.5,17.32562454]
[1693403287289,3.32101645,1714.9,1714.7,3.2078]
[1693403287493,11.20035375,1715.0,1714.7,3.49692695]
[1693403287792,3.02935375,1715.0,1714.9,3.2078]
[1693403287997,3.32099741,1715.0,1714.9,3.49692695]
[1693403288993,1.72522542,1715.0,1714.9,3.49692695]
[1693403289390,12.92557917,1715.0,1714.8,3.6125]
[1693403289595,12.63393551,1715.0,1714.8,3.6125]
[1693403289993,12.63393551,1715.0,1714.9,3.2078]
[1693403290198,8.46264187,1715.0,1714.9,3.2078]
[1693403290392,8.46264187,1715.0,1714.9,3.49692695]
[1693403290995,9.89622363,1715.0,1714.9,3.49692695]
[1693403291298,12.92557738,1715.0,1714.9,3.49692695]
[1693403291503,12.92557738,1715.0,1714.8,3.6125]
[1693403291692,8.171,1714.9,1714.8,3.6125]
[1693403291893,8.171,1715.0,1714.8,5.04608176]
[1693403292095,8.171,1715.0,1714.9,3.2078]
[1693403292294,8.46263323,1715.0,1714.9,3.49692695]
[1693403292600,3.02935375,1715.2,1714.9,11.66792695]
[1693403292799,11.20035375,1715.3,1715.1,3.2078]
[1693403292999,0.29160215,1715.2,1715.1,3.49692695]
[1693403293201,3.02935375,1715.4,1715.1,13.10150871]
[1693403293396,11.95769218,1715.5,1715.3,3.2078]
[1693403293692,0.29159307,1715.4,1715.3,3.49692695]
[1693403294092,0.29159307,1715.4,1715.3,4.93050871]
[1693403294491,3.32931672,1715.4,1715.3,4.93050871]
[1693403295097,3.32928829,1715.4,1715.3,1.72270871]
[1693403295299,3.32928829,1715.4,1715.2,3.6219]
[1693403295595,9.89617483,1715.3,1715.2,3.6219]
[1693403295794,9.89617483,1715.3,1715.2,5.05548176]
[1693403296000,8.46259307,1715.3,1715.2,5.05548176]
[1693403296199,3.79543675,1715.5,1715.2,5.05548176]
[1693403296200,11.21743979,1715.5,1715.2,5.05548176]
[1693403296394,11.21743979,1715.5,1715.4,3.2078]
[1693403296595,12.94259952,1715.5,1715.4,3.2078]
[1693403297003,12.94259952,1715.5,1715.4,4.64138176]
[1693403298299,4.77159952,1715.5,1715.4,4.64138176]
[1693403298805,3.33801776,1715.5,1715.4,4.64138176]
[1693403299303,4.77159952,1715.5,1715.4,3.2078]
[1693403299803,3.33801776,1715.5,1715.4,12.81238176]
[1693403300104,0.00874457,1715.5,1715.4,12.81238176]
[1693403300299,3.03769522,1715.8,1715.4,20.37453652]
[1693403300494,0.29151424,1716.0,1715.7,11.3788]
[1693403300700,3.03769522,1716.1,1715.9,3.2078]
[1693403301003,3.32918623,1716.1,1716.0,0.28912695]
[1693403301193,3.32918623,1716.1,1716.0,1.72270871]
[1693403302701,0.29149101,1716.1,1716.0,1.72270871]
[1693403303199,1.43358176,1716.1,1716.0,1.72270871]
[1693403303398,13.4873727,1716.2,1716.0,1.72270871]
[1693403303597,11.21743622,1716.2,1716.0,1.72270871]
[1693403303801,8.179741,1716.2,1716.0,1.72270871]
[1693403304003,11.21743622,1716.2,1716.0,1.72270871]
[1693403304199,14.92095446,1716.2,1716.0,1.72270871]
[1693403304600,0.008741,1716.2,1716.1,11.3788]
[1693403310007,1.44232276,1716.2,1716.1,3.2078]
[1693403310204,1.44232276,1716.2,1716.1,6.6078]
[1693403311009,9.61332276,1716.2,1715.9,3.216541]
[1693403311210,10.44093648,1716.1,1715.9,3.216541]
[1693403311406,1.43358176,1716.0,1715.9,3.216541]
[1693403311805,1.43358176,1716.0,1715.9,0.008741]
[1693403312811,2.26993648,1716.1,1715.9,1.44232276]
[1693403313008,8.179741,1716.2,1716.0,3.2078]
[1693403313212,9.61332276,1716.2,1716.0,3.2078]
[1693403313811,9.61332276,1716.2,1716.0,4.64138176]
[1693403314007,8.179741,1716.2,1716.0,4.64138176]
[1693403314613,0.008741,1716.2,1716.1,0.28912695]
[1693403316106,1.44232276,1716.2,1716.0,16.12248176]
[1693403316307,1.44232276,1716.2,1716.0,16.41160871]
[1693403316509,0.008741,1716.2,1716.0,16.41160871]
[1693403317415,0.008741,1716.2,1716.0,8.24060871]
[1693403317416,1.44232276,1716.2,1716.0,8.24060871]
[1693403320812,0.008741,1716.2,1716.0,8.24060871]
[1693403321023,0.008741,1716.2,1716.0,16.41160871]
[1693403321820,0.008741,1716.2,1716.1,7.52002354]
[1693403323721,0.008741,1716.2,1716.0,16.41160871]
[1693403324623,9.61332276,1716.2,1716.0,6.5179]
[1693403324819,9.61332276,1716.2,1716.0,3.3101]
[1693403325127,2.26993648,1716.1,1715.9,0.008741]
[1693403325327,1.43358176,1716.0,1715.9,0.008741]
[1693403326229,10.44093648,1716.1,1715.9,1.44232276]
[1693403326529,11.87451824,1716.1,1715.9,5.08272276]
[1693403327230,11.87451824,1716.1,1715.9,3.649141]
[1693403329427,11.87451824,1716.1,1715.9,0.008741]
[1693403329623,8.171,1716.0,1715.9,0.008741]
[1693403331731,8.171,1716.0,1715.9,1.44232276]
[1693403331935,13.38269309,1716.1,1715.9,1.44232276]
[1693403332433,13.38269309,1716.1,1715.9,0.008741]
[1693403332734,9.67917485,1716.0,1715.9,0.008741]
[1693403332927,1.50817485,1716.0,1715.9,0.008741]
[1693403333331,9.67917485,1716.0,1715.9,0.008741]
[1693403333536,8.171,1716.0,1715.9,0.008741]
[1693403333729,8.46253097,1716.0,1715.9,0.008741]
[1693403333932,2.26993648,1715.9,1715.5,11.4931]
[1693403334134,1.51418729,1715.8,1715.5,11.4931]
[1693403334334,1.43358176,1715.7,1715.5,11.4931]
[1693403334528,3.70351824,1715.7,1715.5,11.4931]
[1693403334933,2.26993648,1715.7,1715.5,12.92668176]
[1693403335636,3.70351824,1715.7,1715.5,12.92668176]
[1693403335835,3.70351824,1715.7,1715.5,11.4931]
[1693403336033,5.21770553,1715.7,1715.5,3.3221]
[1693403337441,8.171,1715.6,1715.4,3.2078]
[1693403337637,5.21770553,1715.5,1715.2,14.9712]
[1693403338142,8.171,1715.3,1715.2,3.2078]
[1693403338439,8.171,1715.3,1714.9,8.171]
[1693403338440,13.38870553,1715.3,1714.9,8.171]
[1693403338631,13.38870553,1715.3,1714.9,11.3788]
[1693403339033,1.51418729,1715.2,1714.9,11.3788]
[1693403339237,3.70351824,1715.1,1714.9,11.3788]
[1693403339834,3.70351824,1715.1,1714.9,12.81238176]
[1693403340242,1.51418729,1715.2,1714.9,12.81238176]
[1693403340441,1.51418729,1715.3,1715.0,8.171]
[1693403340739,1.51418729,1715.3,1715.2,8.171]
[1693403340940,1.51418729,1715.4,1715.2,8.171]
[1693403341238,3.03769522,1715.5,1715.3,1.43358176]
[1693403341436,4.76287375,1715.5,1715.3,1.43358176]
[1693403341636,1.51657651,1715.4,1715.3,1.43358176]
[1693403342236,4.47127698,1715.5,1715.3,4.89068176]
[1693403342942,1.516486,1715.4,1715.3,4.89068176]
[1693403343743,1.516486,1715.4,1715.3,8.09848176]
[1693403344041,1.516486,1715.5,1715.3,8.09848176]
[1693403344242,1.516486,1715.5,1715.4,0.28912695]
[1693403344845,2.95006776,1715.5,1715.4,0.28912695]
[1693403345044,1.516486,1715.5,1715.4,0.28912695]
[1693403345345,1.516486,1715.5,1715.4,8.46012695]
[1693403345740,1.52523032,1715.6,1715.4,8.46012695]
[1693403345943,0.00874432,1715.6,1715.5,12.81238176]
[1693403346240,0.00874432,1715.6,1715.5,20.39181349]
[1693403353649,1.44232608,1715.6,1715.5,11.3788]
[1693403353841,2.96006271,1715.6,1715.5,11.3788]
[1693403355244,5.23659106,1715.6,1715.5,8.171]
[1693403355445,3.71893103,1715.6,1715.4,8.46012695]
[1693403355746,3.71893103,1715.6,1715.4,8.171]
[1693403355747,1.51760758,1715.5,1715.4,8.171]
[1693403356150,1.51760758,1715.5,1715.4,9.60458176]
[1693403356448,3.78754406,1715.5,1715.4,8.171]
[1693403356646,4.54654143,1715.5,1715.3,14.8359]
[1693403356848,2.9510651,1715.4,1715.3,14.8359]
[1693403357550,3.71018671,1715.4,1715.3,11.6281]
[1693403358240,3.79388605,1715.5,1715.3,16.26948176]
[1693403358444,1.5172811,1715.5,1715.4,8.171]
[1693403359148,3.79388605,1715.5,1715.4,8.171]
[1693403359540,0.00874432,1715.6,1715.4,8.171]
[1693403359745,1.44232608,1715.6,1715.5,3.2078]
[1693403359945,1.73387966,1715.6,1715.5,3.2078]
[1693403360146,0.3002979,1715.6,1715.5,13.10150871]
[1693403360449,2.28473407,1715.6,1715.5,13.10150871]
[1693403362953,1.52648833,1715.6,1715.5,13.10150871]
[1693403364353,5.23605984,1715.6,1715.5,11.66792695]
[1693403364951,3.71831583,1715.6,1715.5,11.3788]
[1693403365153,4.0098635,1715.6,1715.5,11.3788]
[1693403365747,1.73387375,1715.6,1715.5,8.171]
[1693403365956,4.0109423,1715.6,1715.5,8.171]
[1693403366158,1.73387375,1715.6,1715.5,8.171]
[1693403366358,4.01107468,1715.6,1715.5,8.171]
[1693403367053,1.73387375,1715.6,1715.5,8.171]
[1693403368250,4.47687508,1715.6,1715.5,8.171]
[1693403368456,4.76842275,1715.6,1715.5,8.171]
[1693403369151,4.76842275,1715.6,1715.3,14.8359]
[1693403369152,5.52706,1715.6,1715.3,14.8359]
[1693403369356,2.27794366,1715.4,1715.3,14.8359]
[1693403369556,3.71152542,1715.4,1715.3,14.8359]
[1693403370251,2.56951396,1715.4,1715.3,16.26948176]
[1693403370656,4.76241027,1715.4,1715.3,11.6281]
[1693403370861,4.76241027,1715.4,1715.3,8.171]
[1693403371059,4.76241027,1715.4,1715.1,11.3788]
[1693403371264,2.27815254,1715.2,1715.1,11.3788]
[1693403371464,3.7117343,1715.2,1715.1,11.3788]
[1693403371666,4.00333614,1715.2,1715.0,3.5102]
[1693403371859,4.54812645,1715.1,1715.0,3.5102]
[1693403372055,6.06669209,1715.1,1714.9,3.2078]
[1693403372266,3.71177173,1715.0,1714.9,3.2078]
[1693403372962,4.00340717,1715.0,1714.9,3.2078]
[1693403373158,3.71177173,1715.0,1714.9,3.2078]
[1693403373762,4.00341242,1715.0,1714.9,3.2078]
[1693403373964,3.71177173,1715.0,1714.9,3.2078]
[1693403374163,4.00341242,1715.0,1714.9,3.2078]
[1693403374466,4.76248066,1715.0,1714.7,14.965]
[1693403374766,1.51829049,1714.8,1714.7,11.7572]
[1693403374969,2.95187225,1714.8,1714.7,11.7572]
[1693403375156,2.95187225,1714.8,1714.7,8.171]
[1693403376267,2.95187225,1714.8,1714.5,3.2078]
[1693403376659,2.26993648,1714.7,1714.5,3.2078]
[1693403376969,1.43358176,1714.6,1714.5,3.2078]
[1693403377567,1.43358176,1714.6,1714.5,4.64138176]
[1693403377957,1.43358176,1714.6,1714.5,4.93050871]
[1693403378162,1.43358176,1714.6,1714.5,3.49692695]
[1693403378366,1.43358176,1714.6,1714.5,4.93050871]
[1693403378867,1.43358176,1714.6,1714.5,4.64138176]
[1693403379069,2.26993648,1714.7,1714.5,4.64138176]
[1693403379364,1.43358176,1714.6,1714.4,13.5405272]
[1693403379667,3.70351824,1714.6,1714.4,11.7274]
[1693403380467,3.70351824,1714.6,1714.5,3.2078]
[1693403381165,2.26993648,1714.6,1714.5,4.64138176]
[1693403381365,9.68929049,1715.0,1714.5,12.81238176]
[1693403381567,2.26993648,1714.9,1714.7,3.2078]
[1693403381770,3.70351824,1714.9,1714.7,3.2078]
[1693403382073,3.70351824,1714.9,1714.5,12.81238176]
[1693403382266,3.70351824,1714.9,1714.7,8.171]
[1693403386671,2.27305616,1715.1,1714.8,8.171]
[1693403386672,1.51537077,1715.1,1714.8,8.171]
[1693403386875,1.51537077,1715.1,1714.9,3.2078]
[1693403387069,1.51537077,1715.1,1715.0,1.43358176]
[1693403387380,1.51537077,1715.2,1715.0,8.171]
[1693403387563,3.78842693,1715.4,1715.1,13.10150871]
[1693403387763,1.51537077,1715.4,1715.1,13.10150871]
[1693403387962,3.78842693,1715.5,1715.3,11.3788]
[1693403388265,3.78842693,1715.5,1715.3,13.10150871]
[1693403388467,0.93227077,1715.5,1715.3,13.10150871]
[1693403388670,0.34917077,1715.5,1715.3,13.10150871]
[1693403388871,0.34917077,1715.5,1715.4,8.171]
[1693403389071,9.3244755,1715.9,1715.5,1.72270871]
[1693403389072,2.27284371,1715.9,1715.5,1.72270871]
[1693403389268,2.27284371,1715.9,1715.8,8.171]
[1693403389670,2.27284371,1715.9,1715.8,9.89370871]
[1693403390371,1.68994371,1715.9,1715.8,9.89370871]
[1693403391073,3.03053948,1716.1,1715.8,9.89370871]
[1693403391271,1.5135443,1716.0,1715.8,9.89370871]
[1693403391673,4.54408378,1716.0,1715.8,9.89370871]
[1693403392272,0.07996254,1715.9,1715.8,9.89370871]
[1693403393977,1.5135443,1715.9,1715.8,0.28912695]
[1693403394172,9.6845443,1715.9,1715.7,3.2078]
[1693403394376,0.07996254,1715.8,1715.7,3.2078]
[1693403394876,0.07996254,1715.8,1715.7,4.64138176]
[1693403396275,0.07996254,1715.8,1715.7,3.2078]
[1693403396469,0.07996254,1715.8,1715.6,3.85822695]
[1693403396670,1.43358176,1715.7,1715.6,3.85822695]
[1693403396974,1.43358176,1715.7,1715.6,5.29180871]
[1693403397370,9.6845443,1715.7,1715.6,3.5691]
[1693403397570,11.95448078,1715.7,1715.6,3.5691]
[1693403399974,11.95448078,1715.7,1715.3,6.63]
[1693403400180,8.171,1715.4,1715.3,3.4222]
[1693403400380,11.95448078,1715.4,1715.1,3.2078]
[1693403400571,11.95448078,1715.4,1715.2,1.43358176]
[1693403401277,2.34989902,1715.4,1715.3,3.2078]
[1693403401473,0.07996254,1715.4,1715.3,3.2078]
[1693403401870,0.07996254,1715.4,1715.3,3.49692695]
[1693403402473,0.07996254,1715.4,1715.2,1.43358176]
[1693403402474,1.5135443,1715.4,1715.2,1.43358176]
[1693403402874,10.44093648,1715.3,1715.1,3.2078]
[1693403403075,1.43358176,1715.2,1715.1,3.2078]
[1693403403472,1.5135443,1715.2,1715.1,3.2078]
[1693403403672,9.6845443,1715.2,1715.1,3.2078]
[1693403403875,9.6845443,1715.2,1715.0,3.3021]
[1693403404082,2.26993648,1715.1,1715.0,3.3021]
[1693403404580,2.34989902,1715.1,1715.0,3.3021]
[1693403405377,10.52089902,1715.1,1714.7,3.2078]
[1693403405578,0.07996254,1714.9,1714.7,3.2078]
[1693403405876,3.78348078,1714.9,1714.7,8.25418176]
[1693403406077,2.34989902,1714.9,1714.7,8.25418176]
[1693403406578,3.70351824,1714.9,1714.7,8.25418176]
[1693403406774,0.07996254,1714.8,1714.7,8.25418176]
[1693403408484,0.07996254,1714.8,1714.7,16.42518176]
[1693403409578,1.5135443,1714.8,1714.7,6.8206]
[1693403410485,0.07996254,1714.8,1714.7,8.25418176]
[1693403410879,0.07996254,1714.8,1714.7,16.42518176]
[1693403411687,11.3788,1715.3,1714.7,16.42518176]
[1693403411884,8.171,1715.4,1715.1,3.2078]
[1693403412185,1.43358176,1715.3,1715.1,3.2078]
[1693403412380,1.43358176,1715.3,1715.1,6.8374]
[1693403412581,3.70351824,1715.3,1715.1,7.12652695]
[1693403412981,1.43358176,1715.3,1715.1,8.56010871]
[1693403413377,1.43358176,1715.3,1715.1,7.12652695]
[1693403414585,1.43358176,1715.3,1715.1,8.56010871]
[1693403415189,8.171,1715.2,1715.1,3.6296]
[1693403415387,10.44093648,1715.2,1715.1,3.6296]
[1693403417390,10.44093648,1715.2,1714.7,11.3788]
[1693403417591,8.171,1715.1,1714.7,14.7805]
[1693403417894,2.26993648,1715.0,1714.7,14.7805]
[1693403418192,1.43358176,1714.9,1714.7,14.7805]
[1693403418392,1.43358176,1714.9,1714.7,16.21408176]
[1693403418686,10.44093648,1714.8,1714.7,3.4017]
[1693403419483,8.171,1714.9,1714.7,8.04308176]
[1693403419692,8.171,1715.0,1714.7,8.04308176]
[1693403420096,1.43358176,1714.9,1714.7,4.64138176]
[1693403420389,10.44093648,1714.8,1714.5,3.2078]
[1693403420587,9.60458176,1714.7,1714.5,3.2078]
[1693403421692,9.60458176,1714.7,1714.3,14.9943]
[1693403421892,8.171,1714.6,1714.3,7.11242695]
[1693403422093,1.43358176,1714.5,1714.3,7.11242695]
[1693403422295,1.41453276,1714.5,1714.3,7.11242695]
[1693403422497,9.58553276,1714.5,1714.3,3.2078]
[1693403422689,2.26993648,1714.4,1714.3,3.2078]
[1693403422889,2.26993648,1714.4,1714.1,3.2078]
[1693403423096,2.26993648,1714.4,1714.2,1.43358176]
[1693403423288,8.171,1714.7,1714.3,3.2078]
[1693403423493,8.171,1714.7,1714.4,0.28912695]
[1693403423791,1.41453276,1714.6,1714.4,0.28912695]
[1693403423988,1.41453276,1714.6,1714.4,9.89370871]
[1693403424491,1.41453276,1714.6,1714.4,9.60458176]
[1693403425091,9.58553276,1714.6,1714.3,3.49692695]
[1693403425484,8.171,1714.4,1714.3,3.2078]
[1693403425690,9.58553276,1714.4,1714.3,3.2078]
[1693403425893,9.58553276,1714.4,1714.1,3.2078]
[1693403426090,2.26993648,1714.3,1714.1,3.2078]
[1693403426287,1.41453276,1714.2,1714.1,3.2078]
[1693403426496,2.26993648,1714.3,1714.1,4.64138176]
[1693403427393,11.5298,1714.7,1714.2,8.46012695]
[1693403427594,8.171,1714.7,1714.4,3.2078]
[1693403427798,8.171,1714.7,1714.5,1.43358176]
[1693403427999,11.85546924,1714.7,1714.5,1.43358176]
[1693403429101,11.85546924,1714.7,1714.5,4.90838176]
[1693403429797,11.85546924,1714.7,1714.5,3.4748]
[1693403431999,8.171,1714.6,1714.5,3.4748]
[1693403433298,8.171,1714.6,1714.5,4.90838176]
[1693403434807,8.171,1714.6,1714.5,3.4748]
[1693403435006,8.171,1714.6,1714.2,6.5687]
[1693403435202,2.26993648,1714.5,1714.2,9.931]
[1693403435403,2.26993648,1714.5,1714.3,1.43358176]
[1693403436109,15.0662484,1714.8,1714.4,3.49692695]
[1693403436310,0.0087484,1714.8,1714.6,3.2078]
[1693403436504,0.0087484,1714.8,1714.7,1.43358176]
[1693403436698,0.0087484,1714.8,1714.7,1.72270871]
[1693403436898,8.171,1715.3,1714.7,9.89370871]
[1693403437104,3.78820025,1715.6,1715.1,3.2078]
[1693403437105,3.0305602,1715.6,1715.1,3.2078]
[1693403437302,7.5877,1715.4,1715.3,3.2078]
[1693403437609,8.171,1715.6,1715.3,4.64138176]
[1693403437806,8.171,1715.6,1715.4,0.28912695]
[1693403438006,1.41453276,1715.5,1715.4,0.28912695]
[1693403438504,8.171,1715.6,1715.4,0.28912695]
[1693403438805,8.17974406,1715.6,1715.5,1.43358176]
[1693403439110,9.59427682,1715.6,1715.4,0.28912695]
[1693403439809,2.26993648,1715.5,1715.3,0.00874406]
[1693403440009,1.41453276,1715.4,1715.3,0.00874406]
[1693403440209,1.41453276,1715.4,1715.3,1.44232582]
[1693403441113,1.41453276,1715.4,1715.3,1.44596624]
[1693403441808,10.44093648,1715.5,1715.3,1.44596624]
[1693403442405,11.85546924,1715.5,1715.3,1.44596624]
[1693403442601,0.00874406,1715.6,1715.3,1.44596624]
[1693403442806,0.00874406,1715.6,1715.5,11.3788]
[1693403443007,2.4476602,1716.0,1715.5,12.81238176]
[1693403443206,8.171,1715.9,1715.8,3.2078]
[1693403443408,7.588,1715.9,1715.8,4.64138176]
[1693403444114,9.00253276,1715.9,1715.8,4.64138176]
[1693403444313,9.00253276,1715.9,1715.8,3.21139599]
[1693403444508,9.00253276,1715.9,1715.8,0.00359599]
[1693403445104,17.75653276,1715.9,1715.8,0.00359599]
[1693403445509,20.96433276,1715.9,1715.8,0.00359599]
[1693403446104,20.96433276,1715.9,1715.5,3.2078]
[1693403446313,8.171,1715.7,1715.5,3.49692695]
[1693403446514,8.171,1715.7,1715.6,1.43358176]
[1693403447119,8.171,1715.7,1715.6,1.4375569]
[1693403447314,9.58553276,1715.7,1715.6,1.4375569]
[1693403448407,9.58553276,1715.7,1715.6,0.00397514]
[1693403449110,9.58553276,1715.7,1715.4,3.2965]
[1693403449309,8.171,1715.5,1715.4,3.2965]
[1693403449511,9.58553276,1715.5,1715.4,3.2965]
[1693403450316,9.58553276,1715.5,1715.4,3.30013154]
[1693403450516,9.58553276,1715.5,1715.4,0.00363154]
[1693403451111,9.58553276,1715.5,1715.3,0.00874406]
[1693403451314,2.26993648,1715.4,1715.3,0.00874406]
[1693403452117,2.26993648,1715.4,1715.3,0.01238448]
[1693403453716,2.26993648,1715.4,1715.3,4.65376624]
[1693403454018,9.58553276,1715.5,1715.3,4.65376624]